bitfinex-derivatives/quotes_ETHF0:USTF0_20241020
["timestamp","ask_amount","ask_price","bid_price","bid_amount"]
[1729396530970,0.72858,2643.4,2643.3,3.60744272]
[1729396532174,0.72858,2643.4,2643.3,3.94794272]
[1729396533269,0.72858,2643.4,2643.3,3.94792789]
[1729396533472,0.72858,2643.4,2643.3,3.94792404]
[1729396535978,0.3881,2643.4,2643.3,3.94792404]
[1729396537375,0.3881,2643.4,2643.3,3.60742404]
[1729396537572,0.72858,2643.4,2643.3,3.60742404]
[1729396537972,0.72858,2643.4,2643.3,0.4168]
[1729396546085,0.72858,2643.4,2643.3,2.12021516]
[1729396546779,0.72858,2643.4,2643.3,3.60634905]
[1729396547876,0.72858,2643.4,2643.3,1.90293389]
[1729396548078,0.72858,2643.4,2643.3,3.6063988]
[1729396552793,0.72858,2643.4,2643.3,3.60660463]
[1729396555492,0.72858,2643.4,2643.3,2.12047074]
[1729396556989,0.72858,2643.4,2643.3,3.60691517]
[1729396557194,0.72858,2643.4,2643.3,2.12047074]
[1729396557690,0.72858,2643.4,2643.3,2.12060484]
[1729396561087,0.72858,2643.4,2643.3,0.4168]
[1729396568082,0.72858,2643.4,2643.3,2.12108233]
[1729396570693,0.72858,2643.4,2643.3,2.12103722]
[1729396575499,0.72858,2643.4,2643.3,0.4168]
[1729396575703,0.72858,2643.4,2643.3,2.12091287]
[1729396576093,0.72858,2643.4,2643.3,0.4168]
[1729396576496,10.0,2643.5,2643.3,0.4168]
[1729396576690,10.34048,2643.5,2643.4,0.8102]
[1729396577196,10.75878,2643.5,2643.4,0.8102]
[1729396583324,10.75878,2643.5,2643.4,2.51365348]
[1729396583603,10.75878,2643.5,2643.4,3.99973612]
[1729396590302,10.75878,2643.5,2643.4,0.8102]
[1729396591900,10.4183,2643.5,2643.3,0.75729]
[1729396592096,0.34048,2643.4,2643.3,0.75729]
[1729396598107,0.34048,2643.4,2643.3,0.4168]
[1729396606212,0.34048,2643.4,2643.3,0.7573]
[1729396607809,0.34048,2643.4,2643.3,0.4168]
[1729396608007,0.34048,2643.4,2643.3,0.7573]
[1729396609317,0.34048,2643.4,2643.3,0.4168]
[1729396609512,0.34048,2643.4,2643.3,0.7573]
[1729396614312,0.34048,2643.4,2643.3,2.45977929]
[1729396618017,0.34048,2643.4,2643.3,4.44039637]
[1729396621316,0.34048,2643.4,2643.3,0.7573]
[1729396622315,10.4183,2643.5,2643.3,0.7573]
[1729396622518,10.75878,2643.5,2643.3,0.7573]
[1729396623417,0.34048,2643.4,2643.3,0.7573]
[1729396625111,0.34048,2643.4,2643.3,0.4168]
[1729396629322,0.34048,2643.4,2643.3,4.10001314]
[1729396630315,10.4183,2643.5,2643.4,0.34048]
[1729396630523,10.4183,2643.5,2643.4,3.52835098]
[1729396630724,10.4183,2643.5,2643.4,2.04307606]
[1729396631518,10.75877,2643.5,2643.4,2.04307606]
[1729396631719,10.4183,2643.5,2643.4,2.04307606]
[1729396632115,10.4183,2643.5,2643.4,2.04314485]
[1729396639519,10.4183,2643.5,2643.4,3.52860516]
[1729396639929,10.4183,2643.5,2643.4,2.04314485]
[1729396640926,10.4183,2643.5,2643.4,3.52859335]
[1729396641224,10.4183,2643.5,2643.4,2.04314485]
[1729396641431,10.4183,2643.5,2643.4,3.52859288]
[1729396641632,10.4183,2643.5,2643.4,2.04314485]
[1729396641925,10.4183,2643.5,2643.4,2.04317525]
[1729396642130,10.4183,2643.5,2643.4,3.52862002]
[1729396643343,10.4183,2643.5,2643.4,2.04317525]
[1729396644125,10.4183,2643.5,2643.4,3.52860827]
[1729396644532,10.4183,2643.5,2643.4,0.34048]
[1729396650639,10.0,2643.5,2643.4,0.34048]
[1729396651444,10.0,2643.5,2643.4,7.42786643]
[1729396651646,10.0,2643.5,2643.4,4.02335353]
[1729396651942,10.0,2643.5,2643.4,4.0234069]
[1729396653136,10.0,2643.5,2643.4,7.2312069]
[1729396654029,10.0,2643.5,2643.4,10.63573627]
[1729396654228,10.0,2643.5,2643.4,7.2312069]
[1729396654643,10.0,2643.5,2643.4,10.63573983]
[1729396655540,10.0,2643.5,2643.4,10.63573969]
[1729396655735,10.0,2643.5,2643.4,7.2312069]
[1729396657639,10.0,2643.5,2643.4,10.6358802]
[1729396658350,10.0,2643.5,2643.4,7.4280802]
[1729396658548,10.0,2643.5,2643.4,3.54828]
[1729396663540,10.0,2643.5,2643.4,0.34048]
[1729396663947,10.0,2643.5,2643.4,3.54828]
[1729396667250,9.43214694,2643.5,2643.4,8.65586664]
[1729396667749,9.43214694,2643.5,2643.4,11.13132395]
[1729396674170,9.43214694,2643.5,2643.4,10.63601262]
[1729396674361,9.43214694,2643.5,2643.4,7.42821262]
[1729396675060,9.43214694,2643.5,2643.4,10.63601262]
[1729396675259,3.60814694,2643.5,2643.4,8.65586664]
[1729396676777,3.60814694,2643.5,2643.4,7.23065874]
[1729396677076,3.60814694,2643.5,2643.4,5.25080888]
[1729396677459,3.60814694,2643.5,2643.4,7.23065874]
[1729396680670,3.60814694,2643.5,2643.4,7.22827402]
[1729396681774,3.60814694,2643.5,2643.4,4.02047402]
[1729396681973,3.60814694,2643.5,2643.4,7.22827402]
[1729396682168,3.60814694,2643.5,2643.4,4.53844096]
[1729396683777,3.60814694,2643.5,2643.4,1.33064096]
[1729396683969,3.60814694,2643.5,2643.4,4.53844096]
[1729396686982,3.60814694,2643.5,2643.4,1.33064096]
[1729396687174,3.60814694,2643.5,2643.4,4.53844096]
[1729396687374,3.60814694,2643.5,2643.4,6.23863954]
[1729396687570,3.60814694,2643.5,2643.4,4.53844096]
[1729396688276,3.60814694,2643.5,2643.4,6.2386345]
[1729396688471,3.60814694,2643.5,2643.4,6.23866517]
[1729396689075,3.60814694,2643.5,2643.4,4.53844096]
[1729396689280,3.60814694,2643.5,2643.4,8.64899358]
[1729396689483,3.60814694,2643.5,2643.4,8.64915496]
[1729396690489,3.60814694,2643.5,2643.4,11.12461227]
[1729396690778,3.60814694,2643.5,2643.4,5.44135496]
[1729396690979,3.60814694,2643.5,2643.4,8.64915496]
[1729396691165,3.60814694,2643.5,2643.4,11.12461227]
[1729396694269,3.60814694,2643.5,2643.4,6.02373731]
[1729396694674,3.60814694,2643.5,2643.4,11.12559746]
[1729396696582,3.60814694,2643.5,2643.4,7.91779746]
[1729396696785,3.60814694,2643.5,2643.4,11.12559746]
[1729396697294,3.60814694,2643.5,2643.4,6.7348856]
[1729396698974,3.60814694,2643.5,2643.4,4.2930856]
[1729396699172,3.60814694,2643.5,2643.4,7.50123823]
[1729396703183,3.60814694,2643.5,2643.4,4.29343823]
[1729396703384,3.60814694,2643.5,2643.4,7.50123823]
[1729396703778,3.60814694,2643.5,2643.4,4.29343823]
[1729396703980,3.60814694,2643.5,2643.4,7.50123823]
[1729396704390,3.60814694,2643.5,2643.4,11.89370948]
[1729396704885,3.60814694,2643.5,2643.4,8.68590948]
[1729396705088,3.60814694,2643.5,2643.4,11.89370948]
[1729396705685,3.60814694,2643.5,2643.4,8.68590948]
[1729396706482,3.60814694,2643.5,2643.4,11.89370948]
[1729396708979,3.60814694,2643.5,2643.4,10.19359701]
[1729396709185,3.60814694,2643.5,2643.4,11.89552686]
[1729396710690,3.60814694,2643.5,2643.4,8.68772686]
[1729396710896,3.60814694,2643.5,2643.4,11.89552686]
[1729396712298,3.60814694,2643.5,2643.4,7.50291407]
[1729396713894,3.60814694,2643.5,2643.4,7.50295559]
[1729396714293,3.60814694,2643.5,2643.4,4.29515559]
[1729396714493,3.60814694,2643.5,2643.4,7.50295559]
[1729396714896,3.60814694,2643.5,2643.4,4.29515559]
[1729396715296,3.60814694,2643.5,2643.4,7.50295559]
[1729396716195,3.60814694,2643.5,2643.4,4.29515559]
[1729396716501,3.60814694,2643.5,2643.4,7.50295559]
[1729396718097,3.60814694,2643.5,2643.4,6.73695559]
[1729396719102,7.73181694,2643.5,2643.4,5.90119281]
[1729396719294,7.73181694,2643.5,2643.4,6.89255064]
[1729396719497,3.94861694,2643.5,2643.4,4.91027835]
[1729396719693,7.73181694,2643.5,2643.4,4.91027835]
[1729396720098,3.94861694,2643.5,2643.4,4.91027835]
[1729396720405,3.94861694,2643.5,2643.4,6.39714454]
[1729396722089,3.94861694,2643.5,2643.4,3.18934454]
[1729396723605,3.94861694,2643.5,2643.4,3.18825842]
[1729396724000,3.94861694,2643.5,2643.4,1.48686619]
[1729396724304,3.94861694,2643.5,2643.4,3.18827462]
[1729396724691,7.73181694,2643.5,2643.4,1.70140843]
[1729396725405,7.73181694,2643.5,2643.4,2.69222476]
[1729396727097,7.73181694,2643.5,2643.4,0.99081633]
[1729396727299,7.73181694,2643.5,2643.4,1.70106827]
[1729396727511,7.73181694,2643.5,2643.4,3.18793446]
[1729396727808,7.73181694,2643.5,2643.4,1.70106827]
[1729396728411,7.73181694,2643.5,2643.4,2.69150352]
[1729396731411,7.73181694,2643.5,2643.4,2.69066293]
[1729396731802,7.73181694,2643.5,2643.4,0.99043525]
[1729396732202,7.73181694,2643.5,2643.4,2.69066703]
[1729396732412,7.73181694,2643.5,2643.4,0.99043525]
[1729396732711,7.39134694,2643.5,2643.3,0.99043525]
[1729396733009,1.52468,2643.4,2643.3,0.99043525]
[1729396734408,0.3405,2643.3,2643.2,3.2078]
[1729396735010,0.3405,2643.3,2643.1,0.34052]
[1729396735213,0.397,2643.2,2643.1,0.34052]
[1729396736314,0.397,2643.2,2643.0,0.7912]
[1729396736504,0.34061,2642.4,2642.1,3.2078]
[1729396736705,0.34061,2642.4,2641.9,1.48686619]
[1729396736706,0.34061,2642.5,2642.0,0.34065]
[1729396737309,0.34061,2642.5,2641.9,1.1924]
[1729396737310,3.54841,2642.5,2641.9,1.1924]
[1729396737515,3.2078,2642.5,2641.9,1.1924]
[1729396737814,3.54841,2642.5,2642.0,0.34066]
[1729396738422,3.54841,2642.5,2641.9,1.53307]
[1729396738811,0.34061,2642.4,2641.9,1.53307]
[1729396739115,3.2078,2642.5,2641.9,1.53307]
[1729396739116,3.54841,2642.5,2641.9,1.53307]
[1729396739308,3.54841,2642.5,2641.9,1.1924]
[1729396739309,0.34062,2642.4,2641.9,1.1924]
[1729396739713,3.5484,2642.5,2641.9,1.53307]
[1729396740111,0.3406,2642.5,2641.9,1.53307]
[1729396740511,0.34061,2642.5,2641.9,1.1924]
[1729396740717,0.34061,2642.4,2641.9,1.53308]
[1729396742424,0.34061,2642.4,2641.9,1.1924]
[1729396742611,3.2078,2642.6,2641.9,1.1924]
[1729396742812,0.34063,2642.3,2641.9,1.1924]
[1729396744022,0.34064,2642.2,2641.9,1.1924]
[1729396744610,0.34065,2642.1,2641.9,1.1924]
[1729396744819,0.34065,2642.2,2641.9,1.1924]
[1729396750230,0.34065,2642.2,2641.9,1.53308]
[1729396750421,0.34065,2642.2,2641.9,1.1924]
[1729396752726,0.34065,2642.2,2641.9,1.53307]
[1729396753220,0.34065,2642.2,2641.9,1.1924]
[1729396758733,0.34065,2642.2,2641.9,1.53308]
[1729396758929,0.34062,2642.4,2642.0,0.34066]
[1729396759641,0.34063,2642.3,2642.0,0.34066]
[1729396762733,3.2078,2642.6,2642.0,0.34066]
[1729396763232,0.34062,2642.3,2642.0,0.34066]
[1729396767342,0.34065,2642.2,2641.8,3.54848]
[1729396767540,0.3929,2642.1,2641.9,0.4032]
[1729396767734,1.13064,2642.2,2641.9,0.4032]
[1729396770540,0.34066,2642.1,2641.9,0.4032]
[1729396779642,0.34066,2642.1,2642.0,1.66103348]
[1729396780338,0.34066,2642.1,2642.0,3.14789967]
[1729396780747,0.34066,2642.1,2642.0,3.14872036]
[1729396781345,0.34066,2642.1,2642.0,1.66185417]
[1729396781649,0.34066,2642.1,2642.0,3.64412646]
[1729396782451,0.34066,2642.1,2642.0,7.46699778]
[1729396785754,0.34066,2642.1,2642.0,7.47083169]
[1729396785954,0.34066,2642.1,2642.0,4.99537438]
[1729396786756,0.34066,2642.1,2642.0,3.15438461]
[1729396787550,0.34066,2642.1,2642.0,1.48925982]
[1729396787753,0.34066,2642.1,2642.0,3.15436979]
[1729396790661,0.34066,2642.1,2642.0,3.15436322]
[1729396794759,0.34066,2642.1,2642.0,4.9954536]
[1729396795663,0.34066,2642.1,2642.0,4.99551277]
[1729396800457,0.34066,2642.1,2642.0,4.99555902]
[1729396801861,0.79,2642.2,2641.9,0.4032]
[1729396802069,0.34066,2642.0,2641.9,0.4032]
[1729396802366,0.34066,2642.0,2641.9,2.06829322]
[1729396802557,0.34066,2642.0,2641.9,0.4032]
[1729396809873,0.34066,2642.0,2641.9,7.38211492]
[1729396810569,0.34066,2642.0,2641.9,4.05321879]
[1729396813467,0.34066,2642.0,2641.9,4.05314818]
[1729396815170,4.12546,2642.0,2641.9,3.1530337]
[1729396815375,4.53596,2642.0,2641.9,3.1530337]
[1729396815573,4.53596,2642.0,2641.9,1.66437745]
[1729396816173,4.53596,2642.0,2641.9,3.1530337]
[1729396816381,4.53596,2642.0,2641.9,1.66437745]
[1729396816677,4.1953,2642.0,2641.8,1.48865625]
[1729396816878,1.15288,2641.9,2641.8,1.48865625]
[1729396817176,1.15288,2641.9,2641.8,3.15285598]
[1729396817365,4.93848,2641.9,2641.8,1.66419973]
[1729396817763,4.93848,2641.9,2641.8,3.15285598]
[1729396818163,4.93848,2641.9,2641.8,3.15254688]
[1729396818371,4.93848,2641.9,2641.8,1.66389063]
[1729396818875,0.34069,2641.8,2641.7,1.48865625]
[1729396819074,0.34069,2641.8,2641.7,3.15250853]
[1729396820476,0.34069,2641.8,2641.7,1.66385228]
[1729396821982,0.34069,2641.8,2641.6,1.88185625]
[1729396821983,0.3407,2641.7,2641.6,1.88185625]
[1729396822172,0.3407,2641.7,2641.6,3.54519144]
[1729396824972,0.3407,2641.7,2641.6,0.3932]
[1729396831868,0.3407,2641.7,2641.6,3.54420755]
[1729396839981,0.3407,2641.7,2641.6,0.3932]
[1729396846897,0.3407,2641.7,2641.6,3.54529366]
[1729396847087,0.3407,2641.7,2641.6,3.54530063]
[1729396847890,0.3407,2641.7,2641.6,3.545414]
[1729396848089,0.3407,2641.7,2641.6,1.88185625]
[1729396848601,0.3407,2641.7,2641.6,3.54564044]
[1729396851497,0.3407,2641.8,2641.6,2.05698419]
[1729396851696,0.3407,2641.8,2641.7,3.15217928]
[1729396852688,0.3407,2641.8,2641.7,3.1526195]
[1729396854092,3.2078,2641.9,2641.6,0.3932]
[1729396854297,0.3407,2641.7,2641.6,0.3932]
[1729396858391,0.3407,2641.7,2641.6,1.38599559]
[1729396862103,0.3407,2641.7,2641.6,0.3932]
[1729396862300,0.3407,2641.7,2641.6,7.3762926]
[1729396862501,0.3407,2641.7,2641.6,5.39072187]
[1729396862703,0.3407,2641.7,2641.6,7.37744511]
[1729396863101,0.3407,2641.7,2641.6,5.39072187]
[1729396864309,0.3407,2641.7,2641.6,7.37742284]
[1729396864911,0.3407,2641.7,2641.6,5.39072187]
[1729396865909,0.3407,2641.7,2641.6,5.3908706]
[1729396866111,0.3407,2641.7,2641.6,7.37758936]
[1729396869312,0.3407,2641.7,2641.6,4.04580896]
[1729396870707,0.3407,2641.7,2641.6,4.04541051]
[1729396877224,0.3407,2641.7,2641.6,0.3932]
[1729396880726,0.3407,2641.7,2641.6,1.38677817]
[1729396884225,0.3407,2641.7,2641.6,5.39292095]
[1729396890430,0.3407,2641.7,2641.6,7.38122253]
[1729396892419,0.3407,2641.7,2641.6,0.3932]
[1729396895333,3.52966652,2641.9,2641.5,0.99418225]
[1729396895531,0.34073,2641.5,2641.4,0.99418225]
[1729396895731,0.34073,2641.5,2641.4,2.66143975]
[1729396896031,0.34074,2641.4,2641.3,1.39688225]
[1729396897530,0.34074,2641.4,2641.3,0.4027]
[1729396899441,0.34074,2641.4,2641.3,7.38995184]
[1729396899643,0.34074,2641.4,2641.3,7.38990047]
[1729396900330,0.8402,2641.6,2641.3,4.05730121]
[1729396900535,0.34071,2641.7,2641.5,1.83105126]
[1729396900735,0.34071,2641.7,2641.6,3.95374878]
[1729396900940,0.34071,2641.7,2641.6,4.36564878]
[1729396904629,0.34071,2641.7,2641.6,4.36542652]
[1729396908835,0.34071,2641.7,2641.6,4.36546002]
[1729396909930,0.34071,2641.7,2641.6,2.69934915]
[1729396910330,0.34071,2641.7,2641.6,4.36546189]
[1729396910931,0.34071,2641.7,2641.6,4.36545989]
[1729396911529,0.34071,2641.7,2641.6,2.65963621]
[1729396911741,0.74791,2641.7,2641.6,2.65963621]
[1729396912941,4.53351,2641.7,2641.6,2.65963621]
[1729396913136,4.53351,2641.7,2641.6,3.07123621]
[1729396914740,4.53351,2641.7,2641.6,2.65963621]
[1729396914936,4.53351,2641.7,2641.5,1.49024915]
[1729396914937,4.1928,2641.7,2641.4,0.4116]
[1729396915135,0.34073,2641.5,2641.4,0.4116]
[1729396922045,0.34073,2641.5,2641.4,4.06606292]
[1729396924052,0.34073,2641.5,2641.4,4.06599474]
[1729396926945,0.34073,2641.5,2641.4,7.39811414]
[1729396929061,0.34073,2641.5,2641.4,1.40512962]
[1729396937054,0.34073,2641.5,2641.4,5.40945973]
[1729396938864,0.34073,2641.5,2641.4,5.40983526]
[1729396943470,0.34073,2641.5,2641.4,5.41069858]
[1729396944169,0.34073,2641.5,2641.4,1.40526185]
[1729396952078,3.54851,2641.7,2641.5,0.34072]
[1729396952281,3.54851,2641.7,2641.6,4.48002345]
[1729396953176,3.54851,2641.7,2641.6,2.49279987]
[1729396953777,0.34071,2641.7,2641.6,2.49279987]
[1729396957888,0.34071,2641.7,2641.6,0.8306]
[1729396958075,0.34071,2641.7,2641.6,2.49228025]
[1729396959293,0.34071,2641.7,2641.6,0.8306]
[1729396967388,0.34071,2641.7,2641.6,2.49230188]
[1729396967782,0.34071,2641.7,2641.6,2.49229214]
[1729396970892,0.34071,2641.7,2641.6,0.8306]
[1729396971683,0.34071,2641.7,2641.6,2.49230188]
[1729396971992,0.34071,2641.7,2641.6,0.8306]
[1729396972293,0.34071,2641.7,2641.6,4.47950954]
[1729396972496,0.34071,2641.7,2641.6,4.4794761]
[1729396973793,0.34071,2641.7,2641.6,2.81778226]
[1729396973994,0.34071,2641.7,2641.6,4.47954401]
[1729396974697,0.34071,2641.7,2641.6,3.98244771]
[1729396975599,0.75141,2641.7,2641.6,3.15184771]
[1729396981790,0.75141,2641.7,2641.4,2.39878226]
[1729396981791,0.34073,2641.5,2641.4,1.40505878]
[1729396983501,0.34073,2641.5,2641.4,0.4116]
[1729396989706,0.34073,2641.5,2641.4,3.5632471]
[1729396990506,0.34073,2641.5,2641.4,2.07316114]
[1729396992004,0.34073,2641.5,2641.4,2.65453791]
[1729396992005,4.12633,2641.5,2641.4,2.65453791]
[1729396992302,4.12633,2641.5,2641.2,1.98718226]
[1729396992303,0.34075,2641.3,2641.2,0.99318708]
[1729396992508,3.54855,2641.3,2641.2,0.99318708]
[1729396992699,0.34077,2641.2,2641.1,0.99318708]
[1729396992900,1.16247,2641.2,2641.1,0.99318708]
[1729396993100,4.94887,2641.2,2641.1,0.99318708]
[1729396993409,0.34078,2641.1,2641.0,0.99318708]
[1729396995005,0.75158,2641.1,2641.0,0.99318708]
[1729396995206,0.34079,2641.0,2640.9,0.99318708]
[1729396996910,0.3408,2640.9,2640.8,1.42148708]
[1729396998508,0.3408,2640.9,2640.8,0.4283]
[1729397002216,0.34078,2641.1,2640.9,0.3408]
[1729397002422,0.34078,2641.1,2641.0,0.8339]
[1729397042147,0.34078,2641.1,2641.0,1.82708708]
[1729397049641,0.34078,2641.1,2641.0,0.8339]
[1729397049845,0.34078,2641.1,2641.0,1.82708708]
[1729397050252,0.34078,2641.1,2641.0,0.8339]
[1729397055663,3.54858,2641.1,2641.0,0.8339]
[1729397057264,3.54858,2641.1,2641.0,1.82708708]
[1729397058562,0.34078,2641.1,2641.0,1.82708708]
[1729397058758,3.54858,2641.1,2641.0,1.82708708]
[1729397063961,2.02758,2641.4,2641.0,6.28368709]
[1729397063962,3.2078,2641.4,2641.0,6.28368709]
[1729397064266,3.2078,2641.7,2641.3,5.19498226]
[1729397064472,0.3407,2641.7,2641.6,0.99422684]
[1729397064667,3.5485,2641.7,2641.6,0.99422684]
[1729397064869,3.5485,2641.7,2641.5,0.99422684]
[1729397065470,3.2078,2641.7,2641.5,0.99422684]
[1729397065979,3.5485,2641.7,2641.5,0.99422684]
[1729397066979,3.5485,2641.7,2641.4,1.74616684]
[1729397067281,3.5485,2641.7,2641.5,1.39982684]
[1729397067470,3.5485,2641.7,2641.5,0.8027]
[1729397071186,0.3407,2641.7,2641.5,0.8027]
[1729397071486,3.5485,2641.7,2641.5,0.8027]
[1729397071963,3.2078,2641.7,2641.5,0.8027]
[1729397072167,3.54851,2641.7,2641.5,0.8027]
[1729397072581,0.34071,2641.6,2641.5,0.8027]
[1729397073381,0.74281,2641.6,2641.5,0.8027]
[1729397076885,3.95061,2641.6,2641.5,0.8027]
[1729397082375,3.95061,2641.6,2641.5,0.4056]
[1729397082574,3.6099,2641.6,2641.4,0.4112]
[1729397082783,0.34073,2641.5,2641.4,0.4112]
[1729397083784,3.54853,2641.5,2641.4,0.4112]
[1729397088279,3.97673,2641.5,2641.4,0.4112]
[1729397088883,0.34075,2641.3,2641.2,0.8247]
[1729397089188,0.34075,2641.3,2641.2,1.244]
[1729397093604,0.34075,2641.3,2641.2,0.8179]
[1729397099892,0.34075,2641.3,2641.2,0.3986]
[1729397100289,4.0625,2641.5,2640.9,0.394]
[1729397100485,0.34078,2641.1,2641.0,0.3946]
[1729397101285,0.34079,2641.0,2640.9,0.394]
[1729397102490,0.34079,2641.0,2640.9,1.38547643]
[1729397107494,0.34079,2641.0,2640.9,3.04600061]
[1729397108293,0.34079,2641.0,2640.9,3.04599783]
[1729397108610,0.34079,2641.0,2640.9,1.38547643]
[1729397109495,0.34079,2641.0,2640.9,0.394]
[1729397113894,0.3408,2640.9,2640.8,0.3885]
[1729397114100,0.34082,2640.8,2640.7,0.395]
[1729397117598,0.34082,2640.8,2640.7,3.54246629]
[1729397119092,0.34082,2640.8,2640.7,2.05525165]
[1729397119291,0.34082,2640.8,2640.7,2.43395165]
[1729397119705,0.34082,2640.8,2640.7,2.05525165]
[1729397120200,0.34082,2640.8,2640.7,2.05525507]
[1729397120596,0.34082,2640.8,2640.7,3.04784338]
[1729397120796,0.34082,2640.8,2640.7,1.38758831]
[1729397124602,0.34082,2640.8,2640.7,0.395]
[1729397130815,0.34082,2640.8,2640.7,0.7737]
[1729397132616,0.34082,2640.8,2640.7,3.9210849]
[1729397134811,0.34082,2640.8,2640.7,2.43405007]
[1729397135117,0.34082,2640.8,2640.7,3.92305909]
[1729397136717,0.34082,2640.8,2640.7,2.43405007]
[1729397139515,0.34082,2640.8,2640.7,0.7737]
[1729397139919,0.34082,2640.8,2640.7,0.395]
[1729397144724,0.34082,2640.8,2640.7,1.38809693]
[1729397145111,0.34082,2640.8,2640.7,0.395]
[1729397145516,0.34082,2640.8,2640.7,1.38809693]
[1729397147729,0.34082,2640.8,2640.7,4.04076194]
[1729397149425,0.34082,2640.8,2640.7,4.04081252]
[1729397150025,0.34082,2640.8,2640.7,7.36664032]
[1729397151718,0.34082,2640.8,2640.7,7.74534032]
[1729397151921,0.34082,2640.8,2640.7,8.16884032]
[1729397152519,0.34082,2640.8,2640.7,7.79014032]
[1729397153121,0.34082,2640.8,2640.7,7.79071068]
[1729397154331,0.34082,2640.8,2640.7,7.79095402]
[1729397159224,0.34082,2640.8,2640.7,2.80145286]
[1729397159430,0.34082,2640.8,2640.7,7.79175082]
[1729397162722,0.34082,2640.8,2640.7,3.47660497]
[1729397163436,3.2078,2641.0,2640.7,3.97389198]
[1729397163636,3.2078,2641.0,2640.9,1.37320718]
[1729397163831,3.2078,2641.0,2640.9,3.03667066]
[1729397164032,3.2078,2641.0,2640.9,3.46523664]
[1729397164726,3.58645,2641.1,2640.9,3.08656664]
[1729397164931,3.2078,2641.1,2641.0,0.79166]
[1729397165130,0.3929,2641.5,2641.0,2.49394199]
[1729397165335,0.3929,2641.5,2641.3,0.37862]
[1729397165336,0.37859,2641.5,2641.3,0.37862]
[1729397165632,0.37859,2641.5,2641.4,1.2184]
[1729397166426,3.58639,2641.5,2641.4,1.2184]
[1729397172440,3.58639,2641.5,2641.4,1.597]
[1729397172643,3.2078,2641.5,2641.4,1.597]
[1729397177646,0.37857,2641.6,2641.4,1.597]
[1729397177844,3.2078,2641.5,2641.4,1.597]
[1729397180351,3.58639,2641.5,2641.4,1.597]
[1729397181144,0.37859,2641.5,2641.4,1.597]
[1729397183046,3.6007,2641.7,2641.4,1.2184]
[1729397183457,3.2078,2641.7,2641.6,0.37857]
[1729397183662,3.2078,2641.7,2641.5,0.37858]
[1729397184161,3.2078,2641.7,2641.5,0.37859]
[1729397184451,3.58636,2641.7,2641.5,0.37859]
[1729397184753,3.2078,2641.7,2641.6,0.37857]
[1729397185252,3.2078,2641.7,2641.5,0.37858]
[1729397185844,3.58636,2641.7,2641.5,0.37858]
[1729397186857,3.2078,2641.7,2641.4,1.2184]
[1729397187050,3.2078,2641.7,2641.6,0.37857]
[1729397188341,3.6003,2642.0,2641.8,0.37854]
[1729397188553,3.2078,2642.0,2641.9,0.37853]
[1729397188959,3.2078,2642.3,2642.0,0.37851]
[1729397189254,0.37849,2642.2,2642.1,0.3932]
[1729397194662,3.58629,2642.2,2642.1,0.3932]
[1729397195860,0.37849,2642.2,2642.1,0.3932]
[1729397196165,3.58629,2642.2,2642.1,0.3932]
[1729397196570,0.37849,2642.2,2642.1,0.3932]
[1729397196761,3.58629,2642.2,2642.1,0.3932]
[1729397197061,0.37849,2642.2,2642.1,0.3932]
[1729397197364,3.58629,2642.2,2642.1,0.3932]
[1729397199759,0.37849,2642.2,2642.1,0.3932]
[1729397199961,3.58629,2642.2,2642.1,0.3932]
[1729397201460,3.2078,2642.2,2641.8,0.7898]
[1729397201667,0.3971,2642.1,2642.0,0.37851]
[1729397202064,0.7756,2642.1,2642.0,0.37851]
[1729397202661,0.7756,2642.1,2641.9,0.78582]
[1729397205056,0.7756,2642.1,2642.0,0.37852]
[1729397205662,0.7756,2642.1,2641.9,0.78582]
[1729397206358,0.7756,2642.1,2642.0,0.37852]
[1729397226686,0.3971,2642.1,2642.0,0.37852]
[1729397226890,0.7756,2642.1,2642.0,0.37852]
[1729397229190,0.7756,2642.1,2642.0,1.3723096]
[1729397230281,0.7756,2642.1,2642.0,0.37852]
[1729397231390,0.3971,2642.1,2642.0,0.37852]
[1729397231587,0.7756,2642.1,2642.0,0.37852]
[1729397234900,0.3971,2642.1,2642.0,0.37852]
[1729397237495,0.3971,2642.1,2642.0,2.04341484]
[1729397239295,0.85881085,2642.2,2642.1,0.3785]
[1729397239496,0.85881085,2642.2,2642.1,3.93054889]
[1729397239497,0.48032085,2642.2,2642.1,3.93054889]
[1729397239690,3.2078,2642.3,2642.2,0.37849]
[1729397239887,3.68807816,2642.3,2642.2,2.04338484]
[1729397240088,3.68807816,2642.3,2642.2,2.44398484]
[1729397240595,3.2078,2642.3,2642.2,3.93247716]
[1729397241794,0.37846,2642.4,2642.2,3.93246716]
[1729397242095,0.48014023,2642.4,2642.3,3.03559833]
[1729397242285,0.85860023,2642.4,2642.3,3.03559833]
[1729397242491,0.48014023,2642.4,2642.3,3.03559833]
[1729397242690,0.85860023,2642.4,2642.3,3.03559833]
[1729397242893,0.85860023,2642.4,2642.3,1.53007392]
[1729397243496,0.85860023,2642.4,2642.3,0.37847]
[1729397243725,0.48014023,2642.4,2642.3,0.37847]
[1729397248501,0.85860023,2642.4,2642.3,0.37847]
[1729397253411,0.3956,2642.5,2642.3,0.37847]
[1729397253603,3.98185,2642.5,2642.2,0.4006]
[1729397253803,3.98185,2642.5,2642.3,0.37846]
[1729397253804,0.48014023,2642.4,2642.3,0.37846]
[1729397256212,0.37846,2642.4,2642.3,0.37846]
[1729397257307,1.25419023,2642.5,2642.3,0.37846]
[1729397257513,1.25420023,2642.5,2642.3,0.37847]
[1729397257715,0.37846,2642.4,2642.3,0.37847]
[1729397258213,1.25419023,2642.5,2642.3,0.37846]
[1729397258404,0.87574023,2642.5,2642.3,0.37846]
[1729397258804,0.37846,2642.4,2642.3,0.37846]
[1729397259004,0.87574023,2642.5,2642.3,0.37846]
[1729397259314,1.25419023,2642.5,2642.2,0.4006]
[1729397259612,1.25419023,2642.5,2642.3,0.37846]
[1729397259811,1.25419023,2642.5,2642.4,0.392]
[1729397260115,1.25419023,2642.5,2642.4,0.19778631]
[1729397264515,1.25419023,2642.5,2642.4,0.57624631]
[1729397265512,1.25419023,2642.5,2642.4,0.19778631]